[Event "Titled Tuesday Blitz January 03 Early 2023"]
[White "Real_taiatai"]
[Black "Horobetz, Graham"]
[BlackFideId "2047322"]
[WhiteElo "2390"]
[BlackElo "2140"]
[Result "1-0"]
[Round "02"]
[TimeControl "180+2"]
[Date "2023.01.03"]
[WhiteClock "0:00:11"]
[BlackClock "0:00:08"]

1. e4 {[%clk 0:02:56]}  c5 {[%clk 0:03:00]} 2. Nf3 {[%clk 0:02:56]}  d6 {[%clk 0:03:00]} 3. Nc3 {[%clk 0:02:53]}  Nf6 {[%clk 0:03:01]} 4. d4 {[%clk 0:02:53]}  cxd4 {[%clk 0:03:01]} 5. Nxd4 {[%clk 0:02:53]}  a6 {[%clk 0:03:01]} 6. Be2 {[%clk 0:02:54]}  e5 {[%clk 0:03:01]} 7. Nb3 {[%clk 0:02:54]}  Be7 {[%clk 0:03:01]} 8. Bg5 {[%clk 0:02:55]}  Be6 {[%clk 0:02:57]} 9. Nd2 {[%clk 0:02:51]}  Qc7 {[%clk 0:02:53]} 10. a4 {[%clk 0:02:42]}  Nbd7 {[%clk 0:02:49]} 11. O-O {[%clk 0:02:23]}  O-O {[%clk 0:02:49]} 12. Re1 {[%clk 0:02:22]}  Rac8 {[%clk 0:02:44]} 13. Nf1 {[%clk 0:02:18]}  h6 {[%clk 0:02:29]} 14. Bh4 {[%clk 0:02:17]}  Nc5 {[%clk 0:02:23]} 15. Bxf6 {[%clk 0:02:08]}  Bxf6 {[%clk 0:02:23]} 16. Ne3 {[%clk 0:02:09]}  Nd7 {[%clk 0:02:10]} 17. Bg4 {[%clk 0:01:54]}  Nb6 {[%clk 0:02:00]} 18. Bf5 {[%clk 0:01:46]}  g6 {[%clk 0:01:55]} 19. Bxe6 {[%clk 0:01:00]}  fxe6 {[%clk 0:01:54]} 20. a5 {[%clk 0:01:00]}  Nd7 {[%clk 0:01:36]} 21. Qg4 {[%clk 0:01:00]}  Kf7 {[%clk 0:01:36]} 22. Rf1 {[%clk 0:00:55]}  Nc5 {[%clk 0:01:18]} 23. f4 {[%clk 0:00:53]}  exf4 {[%clk 0:01:18]} 24. Rxf4 {[%clk 0:00:52]}  Kg7 {[%clk 0:01:18]} 25. Kh1 {[%clk 0:00:44]}  Be5 {[%clk 0:01:17]} 26. Rf3 {[%clk 0:00:43]}  h5 {[%clk 0:01:08]} 27. Qg5 {[%clk 0:00:38]}  Bxc3 {[%clk 0:01:04]} 28. bxc3 {[%clk 0:00:35]}  Nxe4 {[%clk 0:01:04]} 29. Qh4 {[%clk 0:00:30]}  d5 {[%clk 0:00:53]} 30. Raf1 {[%clk 0:00:27]}  Rxf3 {[%clk 0:00:29]} 31. gxf3 {[%clk 0:00:24]}  Nd2 {[%clk 0:00:25]} 32. Qd4+ {[%clk 0:00:24]}  Kh7 {[%clk 0:00:21]} 33. Qxd2 {[%clk 0:00:23]}  Qxa5 {[%clk 0:00:21]} 34. Rg1 {[%clk 0:00:18]}  Qxc3 {[%clk 0:00:19]} 35. Qg2 {[%clk 0:00:18]}  Qf6 {[%clk 0:00:19]} 36. Qe2 {[%clk 0:00:14]}  Rf8 {[%clk 0:00:19]} 37. Rg3 {[%clk 0:00:13]}  a5 {[%clk 0:00:19]} 38. Qd3 {[%clk 0:00:13]}  a4 {[%clk 0:00:17]} 39. Ng2 {[%clk 0:00:12]}  Qf5 {[%clk 0:00:16]} 40. Qc3 {[%clk 0:00:11]}  e5 {[%clk 0:00:11]} 41. Nh4 {[%clk 0:00:12]}  d4 {[%clk 0:00:09]} 42. Qc7+ {[%clk 0:00:10]}  Rf7 {[%clk 0:00:09]} 43. Qd8 {[%clk 0:00:10]}  Qxc2 {[%clk 0:00:08]} 44. Nxg6 {[%clk 0:00:11]}  Qc1+ {[%clk 0:00:08]} 45. Kg2 {[%clk 0:00:12]}  Rg7 {[%clk 0:00:08]} 46. Qh8# {[%clk 0:00:11]} 1-0


[Site "https://www.chess.com"]

[Event "Titled Tuesday Blitz January 03 Early 2023"]
[White "Chernov, Mikhail"]
[Black "Fiorito, Francisco"]
[WhiteFideId "24143170"]
[BlackFideId "180165"]
[WhiteElo "2205"]
[BlackElo "2305"]
[Result "0-1"]
[Round "02"]
[TimeControl "180+2"]
[Date "2023.01.03"]
[WhiteClock "0:00:02"]
[BlackClock "0:00:07"]

1. e4 {[%clk 0:02:49]}  c5 {[%clk 0:02:59]} 2. Nf3 {[%clk 0:02:42]}  Nc6 {[%clk 0:02:59]} 3. d4 {[%clk 0:02:42]}  cxd4 {[%clk 0:03:00]} 4. Nxd4 {[%clk 0:02:43]}  g6 {[%clk 0:03:00]} 5. Nc3 {[%clk 0:02:40]}  Bg7 {[%clk 0:03:00]} 6. Be3 {[%clk 0:02:41]}  Nf6 {[%clk 0:03:01]} 7. Bc4 {[%clk 0:02:41]}  O-O {[%clk 0:03:01]} 8. Bb3 {[%clk 0:02:42]}  Re8 {[%clk 0:03:02]} 9. O-O {[%clk 0:02:35]}  d6 {[%clk 0:03:01]} 10. h3 {[%clk 0:02:35]}  Na5 {[%clk 0:03:01]} 11. f4 {[%clk 0:02:33]}  Nxb3 {[%clk 0:02:41]} 12. axb3 {[%clk 0:02:34]}  Nd7 {[%clk 0:02:24]} 13. Qf3 {[%clk 0:02:31]}  Qc7 {[%clk 0:01:56]} 14. Nd5 {[%clk 0:02:30]}  Qd8 {[%clk 0:01:54]} 15. c4 {[%clk 0:02:28]}  e6 {[%clk 0:01:53]} 16. Nc3 {[%clk 0:02:25]}  Qe7 {[%clk 0:01:48]} 17. Ndb5 {[%clk 0:02:22]}  Nc5 {[%clk 0:01:43]} 18. b4 {[%clk 0:02:19]}  Na6 {[%clk 0:01:36]} 19. Nxa7 {[%clk 0:02:12]}  Bd7 {[%clk 0:01:27]} 20. b5 {[%clk 0:01:28]}  Nb4 {[%clk 0:01:14]} 21. Qf2 {[%clk 0:01:08]}  d5 {[%clk 0:00:53]} 22. c5 {[%clk 0:01:01]}  dxe4 {[%clk 0:00:50]} 23. Nxe4 {[%clk 0:00:54]}  Nd3 {[%clk 0:00:47]} 24. Qd2 {[%clk 0:00:49]}  Nxb2 {[%clk 0:00:46]} 25. Nd6 {[%clk 0:00:42]}  Red8 {[%clk 0:00:39]} 26. Bd4 {[%clk 0:00:37]}  Nc4 {[%clk 0:00:18]} 27. Nxc4 {[%clk 0:00:33]}  Bxd4+ {[%clk 0:00:18]} 28. Qxd4 {[%clk 0:00:31]}  Bxb5 {[%clk 0:00:18]} 29. Nxb5 {[%clk 0:00:19]}  Rxd4 {[%clk 0:00:15]} 30. Rxa8+ {[%clk 0:00:18]}  Rd8 {[%clk 0:00:15]} 31. Rxd8+ {[%clk 0:00:16]}  Qxd8 {[%clk 0:00:16]} 32. Ncd6 {[%clk 0:00:16]}  Qd7 {[%clk 0:00:15]} 33. Kh2 {[%clk 0:00:15]}  Qc6 {[%clk 0:00:14]} 34. Ra1 {[%clk 0:00:15]}  Qxc5 {[%clk 0:00:12]} 35. Ra8+ {[%clk 0:00:15]}  Kg7 {[%clk 0:00:13]} 36. Rb8 {[%clk 0:00:12]}  Qb4 {[%clk 0:00:11]} 37. Kg3 {[%clk 0:00:12]}  Qb3+ {[%clk 0:00:10]} 38. Kh2 {[%clk 0:00:12]}  Qb4 {[%clk 0:00:08]} 39. Rxb7 {[%clk 0:00:11]}  Qxf4+ {[%clk 0:00:08]} 40. Kg1 {[%clk 0:00:12]}  Qc1+ {[%clk 0:00:06]} 41. Kf2 {[%clk 0:00:13]}  Qc5+ {[%clk 0:00:06]} 42. Ke2 {[%clk 0:00:12]}  Qe5+ {[%clk 0:00:05]} 43. Kd3 {[%clk 0:00:12]}  Qd5+ {[%clk 0:00:05]} 44. Kc3 {[%clk 0:00:12]}  Qxg2 {[%clk 0:00:05]} 45. Rxf7+ {[%clk 0:00:10]}  Kh6 {[%clk 0:00:06]} 46. h4 {[%clk 0:00:09]}  Qh3+ {[%clk 0:00:06]} 47. Kd4 {[%clk 0:00:09]}  Qxh4+ {[%clk 0:00:07]} 48. Ke5 {[%clk 0:00:10]}  Qg5+ {[%clk 0:00:07]} 49. Kxe6 {[%clk 0:00:10]}  Qe3+ {[%clk 0:00:07]} 50. Kd7 {[%clk 0:00:10]}  Qh3+ {[%clk 0:00:06]} 51. Kd8 {[%clk 0:00:09]}  Qd3 {[%clk 0:00:06]} 52. Rd7 {[%clk 0:00:08]}  Qb3 {[%clk 0:00:05]} 53. Nc7 {[%clk 0:00:07]}  Qb6 {[%clk 0:00:04]} 54. Kc8 {[%clk 0:00:05]}  Qb1 {[%clk 0:00:04]} 55. Re7 {[%clk 0:00:05]}  Kg5 {[%clk 0:00:04]} 56. Rxh7 {[%clk 0:00:04]}  Kg4 {[%clk 0:00:03]} 57. Rg7 {[%clk 0:00:03]}  g5 {[%clk 0:00:03]} 58. Ne6 {[%clk 0:00:03]}  Qc2+ {[%clk 0:00:03]} 59. Kd7 {[%clk 0:00:02]}  Qa4+ {[%clk 0:00:03]} 60. Ke7 {[%clk 0:00:02]}  Qa7+ {[%clk 0:00:03]} 61. Kf6 {[%clk 0:00:02]}  Qa1+ {[%clk 0:00:04]} 62. Kf7 {[%clk 0:00:02]}  Qa7+ {[%clk 0:00:04]} 63. Kg8 {[%clk 0:00:02]}  Qb8+ {[%clk 0:00:03]} 64. Kh7 {[%clk 0:00:02]}  Qb1+ {[%clk 0:00:04]} 65. Kh6 {[%clk 0:00:01]}  Qh1+ {[%clk 0:00:04]} 66. Kg6 {[%clk 0:00:02]}  Qh5+ {[%clk 0:00:04]} 67. Kf6 {[%clk 0:00:02]}  Qh6+ {[%clk 0:00:04]} 68. Rg6 {[%clk 0:00:03]}  Qh8+ {[%clk 0:00:04]} 69. Kf7 {[%clk 0:00:02]}  Qh7+ {[%clk 0:00:04]} 70. Rg7 {[%clk 0:00:02]}  Qh5+ {[%clk 0:00:04]} 71. Kf8 {[%clk 0:00:02]}  Qh6 {[%clk 0:00:03]} 72. Nxg5 {[%clk 0:00:02]}  Qxd6+ {[%clk 0:00:03]} 73. Kg8 {[%clk 0:00:02]}  Qb8+ {[%clk 0:00:04]} 74. Kh7 {[%clk 0:00:03]}  Kh5 {[%clk 0:00:05]} 75. Nf7 {[%clk 0:00:03]}  Qb1+ {[%clk 0:00:04]} 76. Kh8 {[%clk 0:00:03]}  Qb2 {[%clk 0:00:04]} 77. Kg8 {[%clk 0:00:03]}  Qb8+ {[%clk 0:00:04]} 78. Kh7 {[%clk 0:00:03]}  Qb1+ {[%clk 0:00:05]} 79. Kg8 {[%clk 0:00:04]}  Qb2 {[%clk 0:00:05]} 80. Rh7+ {[%clk 0:00:04]}  Kg6 {[%clk 0:00:05]} 81. Rh6+ {[%clk 0:00:04]}  Kf5 {[%clk 0:00:06]} 82. Rh7 {[%clk 0:00:04]}  Qb8+ {[%clk 0:00:04]} 83. Kg7 {[%clk 0:00:05]}  Qb2+ {[%clk 0:00:04]} 84. Kg8 {[%clk 0:00:05]}  Kf6 {[%clk 0:00:05]} 85. Rh6+ {[%clk 0:00:05]}  Ke7 {[%clk 0:00:05]} 86. Rh7 {[%clk 0:00:04]}  Qb8+ {[%clk 0:00:05]} 87. Kg7 {[%clk 0:00:05]}  Qg3+ {[%clk 0:00:06]} 88. Kh8 {[%clk 0:00:05]}  Kf8 {[%clk 0:00:06]} 89. Nh6 {[%clk 0:00:03]}  Qc3+ {[%clk 0:00:06]} 90. Rg7 {[%clk 0:00:02]}  Qxg7# {[%clk 0:00:07]} 0-1


[Site "https://www.chess.com"]

[Event "Titled Tuesday Blitz January 03 Early 2023"]
[White "Mihajlov, Sebastian"]
[Black "Golizadeh, Asghar"]
[WhiteFideId "1512110"]
[BlackFideId "12505269"]
[WhiteElo "2373"]
[BlackElo "2455"]
[Result "1-0"]
[Round "02"]
[TimeControl "180+2"]
[Date "2023.01.03"]
[WhiteClock "0:00:23"]
[BlackClock "0:00:02"]

1. e4 {[%clk 0:03:00]}  g6 {[%clk 0:02:57]} 2. d4 {[%clk 0:02:59]}  Bg7 {[%clk 0:02:57]} 3. Nc3 {[%clk 0:03:00]}  c5 {[%clk 0:02:56]} 4. dxc5 {[%clk 0:02:59]}  Bxc3+ {[%clk 0:02:56]} 5. bxc3 {[%clk 0:03:00]}  Qa5 {[%clk 0:02:56]} 6. Qd4 {[%clk 0:02:33]}  Nf6 {[%clk 0:02:56]} 7. Qb4 {[%clk 0:02:25]}  Qc7 {[%clk 0:02:54]} 8. Bd3 {[%clk 0:02:24]}  Nc6 {[%clk 0:02:50]} 9. Qa3 {[%clk 0:02:14]}  Nxe4 {[%clk 0:02:41]} 10. Bxe4 {[%clk 0:02:05]}  Qe5 {[%clk 0:02:40]} 11. f3 {[%clk 0:01:31]}  f5 {[%clk 0:02:39]} 12. Ne2 {[%clk 0:01:31]}  fxe4 {[%clk 0:02:37]} 13. Bf4 {[%clk 0:01:31]}  Qh5 {[%clk 0:02:25]} 14. O-O {[%clk 0:01:28]}  e5 {[%clk 0:02:20]} 15. Ng3 {[%clk 0:01:21]}  Qh4 {[%clk 0:02:17]} 16. Be3 {[%clk 0:01:20]}  exf3 {[%clk 0:02:08]} 17. Rxf3 {[%clk 0:01:21]}  b6 {[%clk 0:01:16]} 18. cxb6 {[%clk 0:01:19]}  Bb7 {[%clk 0:01:16]} 19. Raf1 {[%clk 0:01:16]}  Qe7 {[%clk 0:00:53]} 20. Bc5 {[%clk 0:01:03]}  d6 {[%clk 0:00:47]} 21. Bxd6 {[%clk 0:01:02]}  Qe6 {[%clk 0:00:17]} 22. bxa7 {[%clk 0:00:37]}  Rxa7 {[%clk 0:00:15]} 23. Qc5 {[%clk 0:00:37]}  Ra5 {[%clk 0:00:14]} 24. Qb6 {[%clk 0:00:31]}  Qxd6 {[%clk 0:00:09]} 25. Qxb7 {[%clk 0:00:31]}  Ra7 {[%clk 0:00:05]} 26. Qc8+ {[%clk 0:00:28]}  Nd8 {[%clk 0:00:06]} 27. Ne4 {[%clk 0:00:23]}  Qb6+ {[%clk 0:00:05]} 28. Kh1 {[%clk 0:00:23]}  Qb7 {[%clk 0:00:02]} 29. Nd6+ {[%clk 0:00:23]} 1-0


[Site "https://www.chess.com"]

[Event "Titled Tuesday Blitz January 03 Early 2023"]
[White "Iskusnyh, Sergei"]
[Black "Dwilewicz, Katarzyna"]
[WhiteFideId "4120027"]
[BlackFideId "1148486"]
[WhiteElo "2440"]
[BlackElo "2115"]
[Result "1-0"]
[Round "02"]
[TimeControl "180+2"]
[Date "2023.01.03"]
[WhiteClock "0:01:36"]
[BlackClock "0:00:50"]

1. d4 {[%clk 0:03:00]}  d5 {[%clk 0:02:59]} 2. c4 {[%clk 0:03:01]}  e6 {[%clk 0:02:58]} 3. g3 {[%clk 0:03:02]}  c6 {[%clk 0:02:57]} 4. Bg2 {[%clk 0:03:02]}  Nf6 {[%clk 0:02:58]} 5. Qc2 {[%clk 0:03:02]}  Nbd7 {[%clk 0:02:46]} 6. Nf3 {[%clk 0:03:02]}  Bd6 {[%clk 0:02:40]} 7. O-O {[%clk 0:03:01]}  O-O {[%clk 0:02:40]} 8. Nbd2 {[%clk 0:03:01]}  Re8 {[%clk 0:02:24]} 9. e4 {[%clk 0:03:00]}  dxe4 {[%clk 0:02:21]} 10. Nxe4 {[%clk 0:03:01]}  Nxe4 {[%clk 0:02:21]} 11. Qxe4 {[%clk 0:03:01]}  e5 {[%clk 0:02:19]} 12. Bg5 {[%clk 0:02:57]}  f6 {[%clk 0:02:17]} 13. Bd2 {[%clk 0:02:54]}  Bc7 {[%clk 0:02:07]} 14. c5 {[%clk 0:02:42]}  exd4 {[%clk 0:02:06]} 15. Qxd4 {[%clk 0:02:40]}  Ne5 {[%clk 0:02:05]} 16. Qxd8 {[%clk 0:02:36]}  Nxf3+ {[%clk 0:01:59]} 17. Bxf3 {[%clk 0:02:37]}  Rxd8 {[%clk 0:01:59]} 18. Bc3 {[%clk 0:02:30]}  Be6 {[%clk 0:01:58]} 19. Rfe1 {[%clk 0:02:27]}  Kf7 {[%clk 0:01:58]} 20. b4 {[%clk 0:02:26]}  Rd3 {[%clk 0:01:53]} 21. Re3 {[%clk 0:02:22]}  Rxe3 {[%clk 0:01:53]} 22. fxe3 {[%clk 0:02:23]}  Rd8 {[%clk 0:01:53]} 23. Bd4 {[%clk 0:02:22]}  Bd5 {[%clk 0:01:46]} 24. Kf2 {[%clk 0:02:14]}  Ke6 {[%clk 0:01:43]} 25. Be2 {[%clk 0:02:08]}  Be5 {[%clk 0:01:31]} 26. a3 {[%clk 0:02:02]}  Be4 {[%clk 0:01:28]} 27. Bc4+ {[%clk 0:02:01]}  Kf5 {[%clk 0:01:23]} 28. Rd1 {[%clk 0:01:55]}  Bd5 {[%clk 0:01:14]} 29. Bd3+ {[%clk 0:01:53]}  Be4 {[%clk 0:01:14]} 30. g4+ {[%clk 0:01:51]}  Kxg4 {[%clk 0:01:11]} 31. Bxe4 {[%clk 0:01:51]}  Bxh2 {[%clk 0:01:08]} 32. Rh1 {[%clk 0:01:39]}  Be5 {[%clk 0:00:58]} 33. Rg1+ {[%clk 0:01:39]}  Kh5 {[%clk 0:00:55]} 34. Bxe5 {[%clk 0:01:38]}  fxe5 {[%clk 0:00:55]} 35. Rxg7 {[%clk 0:01:38]}  Rd2+ {[%clk 0:00:50]} 36. Kf3 {[%clk 0:01:38]}  Ra2 {[%clk 0:00:49]} 37. Rxh7+ {[%clk 0:01:37]}  Kg5 {[%clk 0:00:49]} 38. Rxb7 {[%clk 0:01:36]}  Rxa3 {[%clk 0:00:50]} 39. Bxc6 {[%clk 0:01:36]} 1-0


[Site "https://www.chess.com"]

[Event "Titled Tuesday Blitz January 03 Early 2023"]
[White "Da Silva Junior, Sediney Mari"]
[Black "gshwbedhkhd"]
[WhiteFideId "2132079"]
[WhiteElo "2010"]
[BlackElo "2529"]
[Result "0-1"]
[Round "02"]
[TimeControl "180+2"]
[Date "2023.01.03"]
[WhiteClock "0:01:20"]
[BlackClock "0:01:13"]

1. e4 {[%clk 0:03:00]}  c5 {[%clk 0:02:57]} 2. c3 {[%clk 0:03:00]}  Nf6 {[%clk 0:02:55]} 3. e5 {[%clk 0:03:00]}  Nd5 {[%clk 0:02:56]} 4. d4 {[%clk 0:02:58]}  cxd4 {[%clk 0:02:57]} 5. Nf3 {[%clk 0:02:58]}  d6 {[%clk 0:02:56]} 6. cxd4 {[%clk 0:02:58]}  e6 {[%clk 0:02:56]} 7. Bc4 {[%clk 0:02:58]}  Be7 {[%clk 0:02:52]} 8. O-O {[%clk 0:02:56]}  O-O {[%clk 0:02:52]} 9. Nc3 {[%clk 0:02:56]}  Nxc3 {[%clk 0:02:51]} 10. bxc3 {[%clk 0:02:57]}  b6 {[%clk 0:02:49]} 11. Qe2 {[%clk 0:02:56]}  Bb7 {[%clk 0:02:48]} 12. Bf4 {[%clk 0:02:55]}  dxe5 {[%clk 0:02:44]} 13. Bxe5 {[%clk 0:02:45]}  Nd7 {[%clk 0:02:38]} 14. Bf4 {[%clk 0:02:45]}  Rc8 {[%clk 0:02:36]} 15. Bd2 {[%clk 0:02:36]}  Nf6 {[%clk 0:02:35]} 16. Bd3 {[%clk 0:02:33]}  h6 {[%clk 0:02:30]} 17. h3 {[%clk 0:02:33]}  Bd6 {[%clk 0:02:29]} 18. Ne5 {[%clk 0:02:33]}  Nd5 {[%clk 0:02:25]} 19. c4 {[%clk 0:02:23]}  Nf6 {[%clk 0:02:21]} 20. f4 {[%clk 0:02:19]}  Bxe5 {[%clk 0:02:00]} 21. Qxe5 {[%clk 0:02:10]}  Nd7 {[%clk 0:02:00]} 22. Qh5 {[%clk 0:02:05]}  Nc5 {[%clk 0:01:48]} 23. dxc5 {[%clk 0:01:57]}  Qxd3 {[%clk 0:01:47]} 24. Rad1 {[%clk 0:01:45]}  Rxc5 {[%clk 0:01:42]} 25. Qg4 {[%clk 0:01:35]}  h5 {[%clk 0:01:41]} 26. Qh4 {[%clk 0:01:29]}  Qe2 {[%clk 0:01:35]} 27. Qg3 {[%clk 0:01:25]}  h4 {[%clk 0:01:21]} 28. Qf2 {[%clk 0:01:24]}  Qxf2+ {[%clk 0:01:18]} 29. Kxf2 {[%clk 0:01:24]}  Rxc4 {[%clk 0:01:15]} 30. a3 {[%clk 0:01:22]}  Rd8 {[%clk 0:01:14]} 31. Be3 {[%clk 0:01:20]}  Rc2+ {[%clk 0:01:13]} 0-1


[Site "https://www.chess.com"]

[Event "Titled Tuesday Blitz January 03 Early 2023"]
[White "Hoffmann, Asa"]
[Black "Aggelis, Nikolaos"]
[WhiteFideId "2001470"]
[BlackFideId "4213220"]
[WhiteElo "2185"]
[BlackElo "2270"]
[Result "0-1"]
[Round "02"]
[TimeControl "180+2"]
[Date "2023.01.03"]
[WhiteClock "0:00:01"]
[BlackClock "0:00:31"]

1. d4 {[%clk 0:02:55]}  c6 {[%clk 0:03:00]} 2. Bg5 {[%clk 0:02:54]}  Qa5+ {[%clk 0:02:55]} 3. Bd2 {[%clk 0:02:53]}  Qb6 {[%clk 0:02:55]} 4. Bc3 {[%clk 0:02:52]}  d5 {[%clk 0:02:52]} 5. Nd2 {[%clk 0:02:52]}  Bf5 {[%clk 0:02:52]} 6. g3 {[%clk 0:02:52]}  e6 {[%clk 0:02:52]} 7. Bg2 {[%clk 0:02:52]}  Nf6 {[%clk 0:02:52]} 8. f3 {[%clk 0:02:50]}  Nbd7 {[%clk 0:02:52]} 9. e4 {[%clk 0:02:50]}  Bg6 {[%clk 0:02:48]} 10. Nh3 {[%clk 0:02:48]}  Bb4 {[%clk 0:02:42]} 11. Nf4 {[%clk 0:02:45]}  Bxc3 {[%clk 0:02:41]} 12. bxc3 {[%clk 0:02:44]}  Qa5 {[%clk 0:02:40]} 13. e5 {[%clk 0:02:38]}  Ng8 {[%clk 0:02:39]} 14. Nxg6 {[%clk 0:02:35]}  hxg6 {[%clk 0:02:39]} 15. Nb1 {[%clk 0:02:31]}  Ne7 {[%clk 0:02:36]} 16. Qd3 {[%clk 0:02:18]}  c5 {[%clk 0:02:35]} 17. Nd2 {[%clk 0:02:15]}  Nc6 {[%clk 0:02:34]} 18. O-O {[%clk 0:02:10]}  c4 {[%clk 0:02:26]} 19. Qe3 {[%clk 0:02:05]}  O-O-O {[%clk 0:02:26]} 20. a4 {[%clk 0:02:04]}  Rh5 {[%clk 0:02:25]} 21. f4 {[%clk 0:02:00]}  Rdh8 {[%clk 0:02:25]} 22. h4 {[%clk 0:02:00]}  Nd8 {[%clk 0:02:10]} 23. Nf3 {[%clk 0:01:55]}  f6 {[%clk 0:02:10]} 24. Kf2 {[%clk 0:01:43]}  Qa6 {[%clk 0:02:00]} 25. a5 {[%clk 0:01:40]}  Nf7 {[%clk 0:02:00]} 26. Rfe1 {[%clk 0:01:38]}  Nh6 {[%clk 0:02:00]} 27. Bh3 {[%clk 0:01:32]}  fxe5 {[%clk 0:01:53]} 28. dxe5 {[%clk 0:01:26]}  Nf5 {[%clk 0:01:53]} 29. Bxf5 {[%clk 0:01:25]}  gxf5 {[%clk 0:01:51]} 30. Nd4 {[%clk 0:01:20]}  R5h6 {[%clk 0:01:49]} 31. Reb1 {[%clk 0:01:19]}  Nc5 {[%clk 0:01:46]} 32. Kg2 {[%clk 0:01:09]}  Ne4 {[%clk 0:01:45]} 33. Nf3 {[%clk 0:00:54]}  Kb8 {[%clk 0:01:36]} 34. Ng5 {[%clk 0:00:54]}  Nxg5 {[%clk 0:01:31]} 35. fxg5 {[%clk 0:00:52]}  R6h7 {[%clk 0:01:26]} 36. Rb4 {[%clk 0:00:51]}  g6 {[%clk 0:01:26]} 37. Qc5 {[%clk 0:00:47]}  Rd7 {[%clk 0:01:24]} 38. Rab1 {[%clk 0:00:43]}  Rc8 {[%clk 0:01:25]} 39. Qd4 {[%clk 0:00:40]}  Qc6 {[%clk 0:01:21]} 40. Kf3 {[%clk 0:00:37]}  Rcc7 {[%clk 0:01:18]} 41. Rb5 {[%clk 0:00:36]}  Qa6 {[%clk 0:01:14]} 42. Rc5 {[%clk 0:00:28]}  Kc8 {[%clk 0:01:07]} 43. Rbb5 {[%clk 0:00:27]}  Kb8 {[%clk 0:01:06]} 44. Rxc7 {[%clk 0:00:26]}  Rxc7 {[%clk 0:01:07]} 45. Rc5 {[%clk 0:00:26]}  b6 {[%clk 0:00:56]} 46. axb6 {[%clk 0:00:24]}  axb6 {[%clk 0:00:56]} 47. Rxc7 {[%clk 0:00:21]}  Kxc7 {[%clk 0:00:57]} 48. g4 {[%clk 0:00:20]}  Qa1 {[%clk 0:00:55]} 49. gxf5 {[%clk 0:00:19]}  Qf1+ {[%clk 0:00:53]} 50. Qf2 {[%clk 0:00:18]}  Qd1+ {[%clk 0:00:47]} 51. Kg3 {[%clk 0:00:17]}  exf5 {[%clk 0:00:46]} 52. Qf3 {[%clk 0:00:17]}  Qxc2 {[%clk 0:00:43]} 53. h5 {[%clk 0:00:12]}  gxh5 {[%clk 0:00:39]} 54. g6 {[%clk 0:00:12]}  Qc1 {[%clk 0:00:39]} 55. Qf4 {[%clk 0:00:09]}  Qxc3+ {[%clk 0:00:38]} 56. Kh4 {[%clk 0:00:08]}  Qe1+ {[%clk 0:00:37]} 57. Kxh5 {[%clk 0:00:08]}  Qh1+ {[%clk 0:00:36]} 58. Kg5 {[%clk 0:00:08]}  Qg1+ {[%clk 0:00:35]} 59. Kf6 {[%clk 0:00:07]}  c3 {[%clk 0:00:35]} 60. e6+ {[%clk 0:00:04]}  Kb7 {[%clk 0:00:35]} 61. Qd6 {[%clk 0:00:04]}  Qd4+ {[%clk 0:00:32]} 62. Kxf5 {[%clk 0:00:02]}  Qd3+ {[%clk 0:00:31]} 63. Kf6 {[%clk 0:00:01]}  c2 {[%clk 0:00:31]} 0-1


[Site "https://www.chess.com"]

[Event "Titled Tuesday Blitz January 03 Early 2023"]
[White "Gjestemoen-VonHirsch, Andre"]
[Black "Danielyan, Vahe"]
[WhiteFideId "1539531"]
[BlackFideId "13304828"]
[WhiteElo "2314"]
[BlackElo "2346"]
[Result "0-1"]
[Round "02"]
[TimeControl "180+2"]
[Date "2023.01.03"]
[WhiteClock "0:00:05"]
[BlackClock "0:02:37"]

1. b3 {[%clk 0:03:00]}  a5 {[%clk 0:02:58]} 2. Bb2 {[%clk 0:03:01]}  a4 {[%clk 0:02:59]} 3. e4 {[%clk 0:02:49]}  e6 {[%clk 0:02:56]} 4. Nf3 {[%clk 0:02:44]}  Nf6 {[%clk 0:02:53]} 5. e5 {[%clk 0:02:33]}  Nd5 {[%clk 0:02:48]} 6. c4 {[%clk 0:02:31]}  Nb6 {[%clk 0:02:46]} 7. d4 {[%clk 0:02:11]}  d6 {[%clk 0:02:45]} 8. Bd3 {[%clk 0:01:49]}  Nc6 {[%clk 0:02:44]} 9. exd6 {[%clk 0:01:43]}  cxd6 {[%clk 0:02:44]} 10. O-O {[%clk 0:01:43]}  Be7 {[%clk 0:02:43]} 11. d5 {[%clk 0:01:29]}  exd5 {[%clk 0:02:43]} 12. Bxg7 {[%clk 0:01:29]}  Rg8 {[%clk 0:02:42]} 13. Bc3 {[%clk 0:01:23]}  Bh3 {[%clk 0:02:42]} 14. Ne1 {[%clk 0:01:20]}  d4 {[%clk 0:02:42]} 15. Bxh7 {[%clk 0:01:15]}  Rg7 {[%clk 0:02:39]} 16. Bxd4 {[%clk 0:01:00]}  Rxh7 {[%clk 0:02:38]} 17. gxh3 {[%clk 0:00:50]}  Qd7 {[%clk 0:02:38]} 18. Bxb6 {[%clk 0:00:44]}  Qxh3 {[%clk 0:02:38]} 19. Nf3 {[%clk 0:00:05]}  Rg7+ {[%clk 0:02:37]} 0-1


[Site "https://www.chess.com"]

[Event "Titled Tuesday Blitz January 03 Early 2023"]
[White "Ronka, Erik"]
[Black "Qashashvili, Alexandre"]
[WhiteFideId "505080"]
[BlackFideId "13600842"]
[WhiteElo "2276"]
[BlackElo "2505"]
[Result "1-0"]
[Round "02"]
[TimeControl "180+2"]
[Date "2023.01.03"]
[WhiteClock "0:01:22"]
[BlackClock "0:01:25"]

1. d4 {[%clk 0:02:56]}  d5 {[%clk 0:03:00]} 2. Nf3 {[%clk 0:02:55]}  Nf6 {[%clk 0:03:00]} 3. g3 {[%clk 0:02:56]}  Bf5 {[%clk 0:02:59]} 4. Bg2 {[%clk 0:02:56]}  Qc8 {[%clk 0:02:59]} 5. h3 {[%clk 0:02:54]}  h6 {[%clk 0:02:58]} 6. c4 {[%clk 0:02:55]}  dxc4 {[%clk 0:02:58]} 7. Nc3 {[%clk 0:02:54]}  e6 {[%clk 0:02:59]} 8. Qa4+ {[%clk 0:02:53]}  c6 {[%clk 0:02:59]} 9. Qxc4 {[%clk 0:02:54]}  Nbd7 {[%clk 0:02:58]} 10. O-O {[%clk 0:02:52]}  Nd5 {[%clk 0:02:58]} 11. e4 {[%clk 0:02:50]}  Nxc3 {[%clk 0:02:58]} 12. exf5 {[%clk 0:02:51]}  Nd5 {[%clk 0:02:57]} 13. fxe6 {[%clk 0:02:51]}  fxe6 {[%clk 0:02:58]} 14. Re1 {[%clk 0:02:49]}  N7f6 {[%clk 0:02:55]} 15. Qe2 {[%clk 0:02:40]}  Nc7 {[%clk 0:02:53]} 16. Ne5 {[%clk 0:02:32]}  Bd6 {[%clk 0:02:53]} 17. Ng6 {[%clk 0:02:32]}  Rg8 {[%clk 0:02:52]} 18. Ne5 {[%clk 0:02:20]}  Bxe5 {[%clk 0:02:51]} 19. dxe5 {[%clk 0:02:14]}  Nfd5 {[%clk 0:02:49]} 20. Be4 {[%clk 0:02:13]}  g6 {[%clk 0:02:39]} 21. Bxh6 {[%clk 0:02:11]}  Qd7 {[%clk 0:02:38]} 22. Bg5 {[%clk 0:02:09]}  Qf7 {[%clk 0:02:24]} 23. Kg2 {[%clk 0:02:06]}  Nb5 {[%clk 0:02:24]} 24. Rad1 {[%clk 0:02:04]}  Nbc7 {[%clk 0:02:15]} 25. Rd3 {[%clk 0:01:59]}  Ne7 {[%clk 0:02:14]} 26. Bf6 {[%clk 0:01:57]}  Ncd5 {[%clk 0:02:13]} 27. Bg5 {[%clk 0:01:57]}  O-O-O {[%clk 0:02:12]} 28. Bxd5 {[%clk 0:01:52]}  Rxd5 {[%clk 0:02:11]} 29. Bxe7 {[%clk 0:01:50]}  Qxe7 {[%clk 0:02:01]} 30. Rxd5 {[%clk 0:01:49]}  cxd5 {[%clk 0:02:02]} 31. Rc1+ {[%clk 0:01:47]}  Kb8 {[%clk 0:02:02]} 32. Qd3 {[%clk 0:01:44]}  Qg5 {[%clk 0:02:01]} 33. f4 {[%clk 0:01:38]}  Qe7 {[%clk 0:01:55]} 34. Qc3 {[%clk 0:01:36]}  a6 {[%clk 0:01:54]} 35. Qc5 {[%clk 0:01:35]}  Qd7 {[%clk 0:01:52]} 36. Kf3 {[%clk 0:01:28]}  g5 {[%clk 0:01:35]} 37. Qd6+ {[%clk 0:01:27]}  Qxd6 {[%clk 0:01:36]} 38. exd6 {[%clk 0:01:28]}  gxf4 {[%clk 0:01:37]} 39. Kxf4 {[%clk 0:01:28]}  e5+ {[%clk 0:01:30]} 40. Kxe5 {[%clk 0:01:27]}  Rxg3 {[%clk 0:01:26]} 41. d7 {[%clk 0:01:25]}  Rg8 {[%clk 0:01:26]} 42. Rc8+ {[%clk 0:01:24]}  Rxc8 {[%clk 0:01:25]} 43. dxc8=Q+ {[%clk 0:01:25]}  Kxc8 {[%clk 0:01:25]} 44. Kxd5 {[%clk 0:01:25]}  Kd7 {[%clk 0:01:26]} 45. Kc5 {[%clk 0:01:23]}  Kc7 {[%clk 0:01:25]} 46. h4 {[%clk 0:01:22]}  b6+ {[%clk 0:01:26]} 47. Kd5 {[%clk 0:01:22]}  Kd7 {[%clk 0:01:26]} 48. h5 {[%clk 0:01:22]}  a5 {[%clk 0:01:25]} 49. h6 {[%clk 0:01:22]} 1-0


[Site "https://www.chess.com"]